Workbook

Sheet Swindle - Winter 2025
B3: SATURDAY SWINDLE - WINTER 2025
B4: BEST 20 ROUNDS
D5: Total | E5: Ave | G5: Swindle | K5: Latest Result - 29 November 2025
C6: Rounds | D6: S'ford | E6: S'ford | F6: Wins | G6: Pts | L6: Stableford | M6: Swindle
A7: =A6+1 -> 1 | B7: Iain Maxwell | C7: 6 | D7: =38+32+35+38+36+33 -> 212 | E7: =IF(C7=0,0,D7/C7) -> 35.33333333 | F7: 1 | G7: =25+9+15+21+20+18 -> 108 | L7: Points | M7: Points
A8: 2 | B8: Colin Reardon | C8: 9 | D8: =30+29+34+35+29+32+36+29+26 -> 280 | E8: =IF(C8=0,0,D8/C8) -> 31.11111111 | F8: 1 | G8: =10+4+12+18+5+10+23+9+2 -> 93 | J8: 1 | K8: Les Bygrave | L8: 31 | M8: 11
A9: 3 | B9: John Copas | C9: 8 | D9: =27+35+36+32+32+28+30+32 -> 252 | E9: =IF(C9=0,0,D9/C9) -> 31.5 | F9: 1 | G9: =5+15+21+13+12+4+4+17 -> 91 | J9: =J8+1 -> 2 | K9: Simon Cook | L9: 30 | M9: 8
A10: 4 | B10: Les Bygrave | C10: 8 | D10: =30+32+35+35+36+30+25+31 -> 254 | E10: =IF(C10=0,0,D10/C10) -> 31.75 | F10: 1 | G10: =11+9+14+16+16+7+4+11 -> 88 | J10: =J9+1 -> 3 | K10: Brad Bygrave | L10: 30 | M10: 6
A11: 5 | B11: John FitzGerald | C11: 6 | D11: =27+34+34+35+36+36 -> 202 | E11: =IF(C11=0,0,D11/C11) -> 33.66666667 | G11: =3+14+15+15+18+20 -> 85 | J11: 4 | K11: Roger Keen | L11: 29 | M11: 5
A12: 6 | B12: Bryn Owen | C12: 7 | D12: =25+37+31+30+38+33+29 -> 223 | E12: =IF(C12=0,0,D12/C12) -> 31.85714286 | F12: 1 | G12: =1+22+9+8+19+13+11 -> 83 | J12: 5 | K12: Adam Witherington | L12: 29 | M12: 4
A13: 7 | B13: Tim Horan | C13: 5 | D13: =36+36+38+34+24 -> 168 | E13: =IF(C13=0,0,D13/C13) -> 33.6 | F13: 1 | G13: =21+20+24+16+1 -> 82 | J13: 6 | K13: John Machin | L13: 26 | M13: 3
A14: 8 | B14: Roger Keen | C14: 9 | D14: =29+33+35+33+29+34+24+28+29 -> 274 | E14: =IF(C14=0,0,D14/C14) -> 30.44444444 | G14: =9+11+15+14+6+12+1+7+5 -> 80 | J14: 7 | K14: Colin Reardon | L14: 26 | M14: 2
A15: 9 | B15: Terry Poingdestre | C15: 7 | D15: =33+32+34+32+33+34+22 -> 220 | E15: =IF(C15=0,0,D15/C15) -> 31.42857143 | G15: =12+7+16+13+11+15+1 -> 75 | J15: 8 | K15: Tim Horan | L15: 24 | M15: 1
A16: 10 | B16: John Machin | C16: 8 | D16: =37+28+31+31+28+24+32+26 -> 237 | E16: =IF(C16=0,0,D16/C16) -> 29.625 | G16: =22+3+12+10+7+2+16+3 -> 75
A17: 11 | B17: Tim Lloyd | C17: 6 | D17: =31+29+34+35+33+32 -> 194 | E17: =IF(C17=0,0,D17/C17) -> 32.33333333 | G17: =14+5+11+19+14+11 -> 74
A18: 12 | B18: Phil Hames | C18: 5 | D18: =34+33+31+37+30 -> 165 | E18: =IF(C18=0,0,D18/C18) -> 33 | G18: =17+10+11+18+12 -> 68
A19: 13 | B19: Simon Cook | C19: 7 | D19: =27+36+25+37+31+27+30 -> 213 | E19: =IF(C19=0,0,D19/C19) -> 30.42857143 | G19: =4+17+2+17+9+6+8 -> 63
A20: 14 | B20: Simon Lloyd | C20: 4 | D20: =30+33+36+36 -> 135 | E20: =IF(C20=0,0,D20/C20) -> 33.75 | G20: =13+13+18+18 -> 62
A21: 15 | B21: Kevin Poore | C21: 4 | D21: =35+41+34+31 -> 141 | E21: =IF(C21=0,0,D21/C21) -> 35.25 | F21: 1 | G21: =13+23+13+8 -> 57
A22: 16 | B22: Andy Vittery | C22: 6 | D22: =28+30+29+31+36+31 -> 185 | E22: =IF(C22=0,0,D22/C22) -> 30.83333333 | G22: =7+6+4+8+17+14 -> 56
A23: 17 | B23: Dennis Cantwell | C23: 8 | D23: =25+27+29+31+26+34+35+22 -> 229 | E23: =IF(C23=0,0,D23/C23) -> 28.625 | G23: =2+2+5+10+2+14+17+3 -> 55
A24: 18 | B24: Brad Bygrave | C24: 7 | D24: =33+30+28+31+32+22+30 -> 206 | E24: =IF(C24=0,0,D24/C24) -> 29.42857143 | G24: =16+6+5+9+10+2+6 -> 54
A25: 19 | B25: Nick Hayward | C25: 7 | D25: =29+30+29+28+24+33+29 -> 202 | E25: =IF(C25=0,0,D25/C25) -> 28.85714286 | G25: =8+7+6+4+3+14+10 -> 52
A26: 20 | B26: Brad Carpenter | C26: 4 | D26: =30+36+24+35 -> 125 | E26: =IF(C26=0,0,D26/C26) -> 31.25 | G26: =12+19+2+17 -> 50
A27: 21 | B27: Simon Hill | C27: 3 | D27: =33+37+31 -> 101 | E27: =IF(C27=0,0,D27/C27) -> 33.66666667 | F27: 1 | G27: =10+24+15 -> 49
A28: 22 | B28: Colin Price | C28: 3 | D28: =37+35+32 -> 104 | E28: =IF(C28=0,0,D28/C28) -> 34.66666667 | G28: =20+16+8 -> 44
A29: 23 | B29: Andy Nash | C29: 4 | D29: =24+31+28+37 -> 120 | E29: =IF(C29=0,0,D29/C29) -> 30 | F29: 1 | G29: =1+11+6+23 -> 41
A30: 24 | B30: Scott Browning | C30: 4 | D30: =35+26+30+20 -> 111 | E30: =IF(C30=0,0,D30/C30) -> 27.75 | G30: =16+3+9+8 -> 36
A31: 25 | B31: Adam Witherington | C31: 7 | D31: =28+31+30+28+23+30+29 -> 199 | E31: =IF(C31=0,0,D31/C31) -> 28.42857143 | G31: =6+8+7+3+2+5+4 -> 35
A32: 26 | B32: Paul Sims | C32: 2 | D32: =32+30 -> 62 | E32: =IF(C32=0,0,D32/C32) -> 31 | G32: =12+13 -> 25
A33: 27 | B33: Phil Nathan | C33: 2 | D33: =31+30 -> 61 | E33: =IF(C33=0,0,D33/C33) -> 30.5 | G33: =15+7 -> 22
A34: 28 | B34: Paul Reardon | C34: 1 | D34: 35 | E34: =IF(C34=0,0,D34/C34) -> 35 | G34: 19
A35: 29 | B35: Trevor Vincent | C35: 4 | D35: =27+28+30+26 -> 111 | E35: =IF(C35=0,0,D35/C35) -> 27.75 | G35: =3+5+6+5 -> 19
A36: 30 | B36: Martyn Crichton | C36: 1 | D36: 35 | E36: =IF(C36=0,0,D36/C36) -> 35 | G36: 18
A37: 31 | B37: Paul Barnett | C37: 3 | D37: =25+29+26 -> 80 | E37: =IF(C37=0,0,D37/C37) -> 26.66666667 | G37: =1+8+3 -> 12
A38: 32 | B38: Martin Thomas | C38: 3 | D38: =24+20+18 -> 62 | E38: =IF(C38=0,0,D38/C38) -> 20.66666667 | G38: =1+1+1 -> 3
E40: =CONCATENATE("Scores after round on ",MID(K5,17,17)) -> Scores after round on 29 November 2025
E41: Rounds: | F41: =SUM(F6:F38) -> 9
